Workbook

Sheet Mean & Standard Deviation
A1: Manager needs to predict Weekly Sales
A2: Manager looks at Past Data:
A3: Weekly Sales (Past Data) Y
A4: 97000
A5: 185000
A6: 260000
A7: 143000
A8: 270000
A9: 398000
A11: Manager wants to look at avergae and varaition in the data.
A12: Weekly Sales (Past Data) | B12: Deviation from Mean (Particular Value - Mean) | D12: Deviation^2
A13: =A4 -> 97000 | B13: =IF(A13<100000,0,"")&FIXED(A13,0)&" - "&FIXED($B$21,0)&" =" -> 097,000 - 225,500 = | C13: =A13-$B$21 -> -128500 | D13: =C13^2 -> 16512250000
A14: 185000 | B14: 185,000 - 225,500 = | C14: -40500 | D14: 1640250000
A15: 260000 | B15: 260,000 - 225,500 = | C15: 34500 | D15: 1190250000
A16: 143000 | B16: 143,000 - 225,500 = | C16: -82500 | D16: 6806250000
A17: 270000 | B17: 270,000 - 225,500 = | C17: 44500 | D17: 1980250000
A18: 398000 | B18: 398,000 - 225,500 = | C18: 172500 | D18: 29756250000
B19: Total | C19: =SUM(C13:C18) -> 0 | D19: =SUM(D13:D18) -> 57885500000
A21: Mean = Xbar = | B21: =AVERAGE(A13:A18) -> 225500 | C21: =" "&IF(_xlfn.ISFORMULA(B21),_xlfn.FORMULATEXT(B21),"") -> =AVERAGE(A13:A18)
A22: Count = n = | B22: =COUNT(A13:A18) -> 6 | C22: =COUNT(A13:A18)
A23: n - 1 | B23: =B22-1 -> 5 | C23: =B22-1
A24: Standard Deviation | B24: =SQRT(D19/B23) -> 107596.933 | C24: =SQRT(D19/B23)
A25: Standard Deviation | B25: =_xlfn.STDEV.S(A13:A18) -> 107596.933 | C25: =STDEV.S(A13:A18)

Sheet X Y Scatter
A1: Ad $ Spent per Week and Weekly Sales
A3: X Ad Dollars Spent per Week | B3: Y Weekly Sales
A4: 14000 | B4: 97000
A5: 27000 | B5: 185000
A6: 39900 | B6: 260000
A7: 17000 | B7: 143000
A8: 34000 | B8: 270000
A9: 43000 | B9: 398000

Sheet Covariance and Correlation
A1: Ad $ Spent per Week and Weekly Sales
A3: Ad Dollars Spent per Week - X | B3: Weekly Sales - Y | C3: X Deviation (Xi - Xbar) | D3: Y Devtaion (Yi - Ybar) | E3: (Xi - Xbar)* (Yi - Ybar)
A4: 14000 | B4: 97000 | C4: =A4-$B$28 -> -15150 | D4: =B4-$B$29 -> -128500 | E4: =D4*C4 -> 1946775000
A5: 27000 | B5: 185000 | C5: -2150 | D5: -40500 | E5: 87075000
A6: 39900 | B6: 260000 | C6: 10750 | D6: 34500 | E6: 370875000
A7: 17000 | B7: 143000 | C7: -12150 | D7: -82500 | E7: 1002375000
A8: 34000 | B8: 270000 | C8: 4850 | D8: 44500 | E8: 215825000
A9: 43000 | B9: 398000 | C9: 13850 | D9: 172500 | E9: 2389125000
C10: =SUM(C4:C9) -> 0 | D10: 0 | E10: =SUM(E4:E9) -> 6012050000
A12: Xbar | B12: Y | C12: X | D12: Ybar
A13: =$B$28 -> 29150 | B13: =MIN(B4:B9) -> 97000 | C13: =MIN(A4:A9) -> 14000 | D13: =$B$29 -> 225500
A14: =$B$28 -> 29150 | B14: =MAX(B4:B9) -> 398000 | C14: =MAX(A4:A9) -> 43000 | D14: =$B$29 -> 225500
A26: Count = n = | B26: =COUNT(A4:A9) -> 6 | C26: =" "&IF(_xlfn.ISFORMULA(B26),_xlfn.FORMULATEXT(B26),"") -> =COUNT(A4:A9)
A27: n-1 | B27: =B26-1 -> 5 | C27: =B26-1
A28: Xbar | B28: =AVERAGE(A4:A9) -> 29150 | C28: =AVERAGE(A4:A9)
A29: Ybar | B29: =AVERAGE(B4:B9) -> 225500 | C29: =AVERAGE(B4:B9)
A30: Sample Standard Deviation X = sx | B30: =_xlfn.STDEV.S(A4:A9) -> 11938.80228 | C30: =STDEV.S(A4:A9)
A31: Sample Standard Deviation Y = sy | B31: =_xlfn.STDEV.S(B4:B9) -> 107596.933 | C31: =STDEV.S(B4:B9)
A32: Covariance = sxy | B32: =E10/B27 -> 1202410000 | C32: =E10/B27
A33: Covariance = sxy | B33: =_xlfn.COVARIANCE.S(B4:B9,A4:A9) -> 1202410000 | C33: =COVARIANCE.S(B4:B9,A4:A9)
A34: Coefficient of Correlation = rxy | B34: =B32/PRODUCT(B30:B31) -> 0.9360346531 | C34: =B32/PRODUCT(B30:B31)
A35: Coefficient of Correlation = rxy | B35: =PEARSON(B4:B9,A4:A9) -> 0.9360346531 | C35: =PEARSON(B4:B9,A4:A9)
A36: Coefficient of Correlation = rxy | B36: =CORREL(B4:B9,A4:A9) -> 0.9360346531 | C36: =CORREL(B4:B9,A4:A9)

Sheet Slope & Int
A1: Ad $ Spent per Week and Weekly Sales
A3: Ad Dollars Spent per Week - X | B3: Weekly Sales - Y | C3: X Deviation (Xi - Xbar) | D3: Y Devtaion (Yi - Ybar) | E3: (Xi - Xbar)* (Yi - Ybar) | F3: X Deviation^2 (Xi - Xbar)^2
A4: 14000 | B4: 97000 | C4: =A4-$B$28 -> -15150 | D4: =B4-$B$29 -> -128500 | E4: =D4*C4 -> 1946775000 | F4: =C4^2 -> 229522500
A5: 27000 | B5: 185000 | C5: -2150 | D5: -40500 | E5: 87075000 | F5: =C5^2 -> 4622500
A6: 39900 | B6: 260000 | C6: 10750 | D6: 34500 | E6: 370875000 | F6: 115562500
A7: 17000 | B7: 143000 | C7: -12150 | D7: -82500 | E7: 1002375000 | F7: 147622500
A8: 34000 | B8: 270000 | C8: 4850 | D8: 44500 | E8: 215825000 | F8: 23522500
A9: 43000 | B9: 398000 | C9: 13850 | D9: 172500 | E9: 2389125000 | F9: 191822500
C10: =SUM(C4:C9) -> 0 | D10: 0 | E10: =SUM(E4:E9) -> 6012050000 | F10: =SUM(F4:F9) -> 712675000
A12: Xbar | B12: Y | C12: X | D12: Ybar
A13: =$B$28 -> 29150 | B13: =MIN(B4:B9) -> 97000 | C13: =MIN(A4:A9) -> 14000 | D13: =$B$29 -> 225500
A14: =$B$28 -> 29150 | B14: =MAX(B4:B9) -> 398000 | C14: =MAX(A4:A9) -> 43000 | D14: =$B$29 -> 225500
A26: Count = n = | B26: =COUNT(A4:A9) -> 6 | C26: =" "&IF(_xlfn.ISFORMULA(B26),_xlfn.FORMULATEXT(B26),"") -> =COUNT(A4:A9)
A27: n-1 | B27: =B26-1 -> 5 | C27: =B26-1
A28: Xbar | B28: =AVERAGE(A4:A9) -> 29150 | C28: =AVERAGE(A4:A9)
A29: Ybar | B29: =AVERAGE(B4:B9) -> 225500 | C29: =AVERAGE(B4:B9)
A30: Slope = b1 = | B30: =E10/F10 -> 8.435892939 | C30: =E10/F10
A31: y-intercept = b0 = | B31: =B29-B30*B28 -> -20406.27916 | C31: =B29-B30*B28
A32: Slope = b1 = | B32: =SLOPE(B4:B9,A4:A9) -> 8.435892939 | C32: =" "&IF(_xlfn.ISFORMULA(B32),_xlfn.FORMULATEXT(B32),"") -> =SLOPE(B4:B9,A4:A9)
A33: y-intercept = b0 = | B33: =INTERCEPT(B4:B9,A4:A9) -> -20406.27916 | C33: =INTERCEPT(B4:B9,A4:A9)
A34: Estimated Regression Equation: | B34: ="Yhat = "&ROUND(B30,2)&"*x + "&ROUND(B31,2) -> Yhat = 8.44*x + -20406.28 | C34: =" "&IF(_xlfn.ISFORMULA(B34),_xlfn.FORMULATEXT(B34),"") -> ="Yhat = "&ROUND(B30,2)&"*x + "&ROUND(B31,2)
A35: Min X | B35: =MIN(A4:A9) -> 14000 | C35: =" "&IF(_xlfn.ISFORMULA(B37),_xlfn.FORMULATEXT(B37),"") -> 
A36: Max X | B36: =MAX(A4:A9) -> 43000 | C36: =" "&IF(_xlfn.ISFORMULA(B35),_xlfn.FORMULATEXT(B35),"") -> =MIN(A4:A9)
A37: x | B37: 40000 | C37: =" "&IF(_xlfn.ISFORMULA(B36),_xlfn.FORMULATEXT(B36),"") -> =MAX(A4:A9)
A38: ="Yhat when x = "&ROUND(B37,0)&" =" -> Yhat when x = 40000 = | B38: =B30*B37+B31 -> 317029.4384 | C38: =" "&IF(_xlfn.ISFORMULA(B38),_xlfn.FORMULATEXT(B38),"") -> =B30*B37+B31
A40: We can use equation to make predictions for a particular situation, or to estimate E(y) over the
A41: range of x values defined by the minimum and maximum x values from our sample.

Sheet C. of Determination r^2
A1: Ad $ Spent per Week and Weekly Sales
E2: Explained | F2: Unexplained
A3: Ad Dollars Spent per Week - Xi | B3: Weekly Sales - Yi | C3: Predicted Value = Yhat | D3: (Yi - Ybar)^2 | E3: (Yhat - Ybar)^2 | F3: (Yi - Yhat)^2
A4: 14000 | B4: 97000 | C4: =$B$31*A4+$B$32 -> 97696.22198 | D4: =(B4-$B$30)^2 -> 16512250000 | E4: =(C4-$B$30)^2 -> 1.633380568e+10 | F4: =(B4-C4)^2 -> 484725.0462
A5: 27000 | B5: 185000 | C5: =$B$31*A5+$B$32 -> 207362.8302 | D5: 1640250000 | E5: 328956929 | F5: =(B5-C5)^2 -> 500096173.8
A6: 39900 | B6: 260000 | C6: 316185.8491 | D6: 1190250000 | E6: 8223923225 | F6: 3156849638
A7: 17000 | B7: 143000 | C7: 123003.9008 | D7: 6806250000 | E7: 1.050545035e+10 | F7: 399843983.4
A8: 34000 | B8: 270000 | C8: 266414.0808 | D8: 1980250000 | E8: 1673962004 | F8: 12858816.85
A9: 43000 | B9: 398000 | C9: 342337.1172 | D9: 29756250000 | E9: 1.365091196e+10 | F9: 3098356522
D10: =SUM(D4:D9) -> 57885500000 | E10: =SUM(E4:E9) -> 5.071701014e+10 | F10: =SUM(F4:F9) -> 7168489859
D11: SST | E11: SSR | F11: SSE
A13: Xbar | B13: Y | C13: X | D13: Ybar
A14: =$B$29 -> 29150 | B14: =MIN(B4:B9) -> 97000 | C14: =MIN(A4:A9) -> 14000 | D14: =$B$30 -> 225500
A15: =$B$29 -> 29150 | B15: =MAX(B4:B9) -> 398000 | C15: =MAX(A4:A9) -> 43000 | D15: =$B$30 -> 225500
A27: Count = n = | B27: =COUNT(A4:A9) -> 6 | C27: =" "&IF(_xlfn.ISFORMULA(B27),_xlfn.FORMULATEXT(B27),"") -> =COUNT(A4:A9)
A28: n-1 | B28: =B27-1 -> 5 | C28: =B27-1
A29: Xbar | B29: =AVERAGE(A4:A9) -> 29150 | C29: =AVERAGE(A4:A9)
A30: Ybar | B30: =AVERAGE(B4:B9) -> 225500 | C30: =AVERAGE(B4:B9)
A31: Slope = b1 = | B31: =SLOPE(B4:B9,A4:A9) -> 8.435892939 | C31: =SLOPE(B4:B9,A4:A9)
A32: y-intercept = b0 = | B32: =INTERCEPT(B4:B9,A4:A9) -> -20406.27916 | C32: =INTERCEPT(B4:B9,A4:A9)
A33: SST | B33: =D10 -> 57885500000 | C33: =D10 | D33: SST = ∑(Yi-Ybar)^2 = Total Sum of Squares. How well observations cluster around Ybar Line. Total Variation between Particular Y and Ybar.
A34: SSR | B34: =E10 -> 5.071701014e+10 | C34: =E10 | D34: SSR = ∑(Yhat-Ybar)^2 = Sum of Squares due to Regression. Variation from Predicted Y to Ybar. Explained part of SST.
A35: SSE | B35: =F10 -> 7168489859 | C35: =F10 | D35: SSE = ∑(Yi-Yhat)^2 = Sum of Squares due to Error/Residuals. How well observations cluster around Yhat Line. Unexplained part of SST.
A36: r^2 = SSR/SST | B36: =B34/B33 -> 0.8761608717 | C36: =B34/B33 | D36: r^2 = Coefficient of Determination = Goodness of fit of Estimated Equation/Line to Sample Raw Data.
A37: r^2 = | B37: =RSQ(B4:B9,A4:A9) -> 0.8761608717 | C37: =RSQ(B4:B9,A4:A9) | E37: r^2 = % of SST explained by Estimated Regression Equation. % of variability in y explained by the linear relationship between x & y.
A38: r^2 = 1 - SSE/SST | B38: =1-B35/B33 -> 0.8761608717 | C38: =1-B35/B33 | E38: r^2 = Measures strength and goodness of fit. 0 to 1. Works with Linear & nonlinear relationships and for 1 or more independent variables.
A39: r = (Sign of b1)*SQRT(r^2) | B39: =SIGN(B31)*SQRT(B38) -> 0.9360346531 | C39: =SIGN(B31)*SQRT(B38) | E39: r = Coefficient of Correlation = -1 to 1. Measures strength and direction of liner relationship with 1 independent variable.
A40: r = | B40: =PEARSON(B4:B9,A4:A9) -> 0.9360346531 | C40: =" "&IF(_xlfn.ISFORMULA(B40),_xlfn.FORMULATEXT(B40),"") -> =PEARSON(B4:B9,A4:A9)
A41: This is a very good fit: about 87.6% of the variation in y can be explained by the Regression Equation/Line.
A42: We can think of it this way: if we had not collected x and y data, we would be stuck with the Y = Ybar Line with the total Variation of (Y - Ybar).
A43: Our predictions would be much less accurate. Our Equation explains 87.5% of the variation above the Ybar Line.

Sheet Test Significance
T1: Error
T2: Residual | U2: Unexplianed portion of SST | V2: Explained Portion of SST
K3: Xi | L3: Yi | M3: (Xi - Xbar) | N3: (Yi - Ybar) | O3: =M3&"*"&CHAR(10)&N3 -> (Xi - Xbar)* (Yi - Ybar) | P3: =M3&"^2" -> (Xi - Xbar)^2 | Q3: =N3&"^2" -> (Yi - Ybar)^2 | R3: Predicted Value = Yhat | S3: Predicted Value = Yhat | T3: Residuals: Yi - Yhat | U3: Residuals Squared | V3: Predicted - Ybar Squared
K4: 14000 | L4: 97000 | M4: =K4-$K$13 -> -15150 | N4: =L4-$K$14 -> -128500 | O4: =N4*M4 -> 1946775000 | P4: =M4^2 -> 229522500 | Q4: 16512250000 | R4: =$K$15*K4+$K$17 -> 97696.22198 | S4: =FORECAST(K4,$L$4:$L$9,$K$4:$K$9) -> 97696.22198 | T4: =L4-R4 -> -696.2219806 | U4: =T4^2 -> 484725.0462 | V4: =(R4-$K$14)^2 -> 1.633380568e+10
K5: 27000 | L5: 185000 | M5: =K5-$K$13 -> -2150 | N5: =L5-$K$14 -> -40500 | O5: =N5*M5 -> 87075000 | P5: =M5^2 -> 4622500 | Q5: =N5^2 -> 1640250000 | R5: =$K$15*K5+$K$17 -> 207362.8302 | S5: =FORECAST(K5,$L$4:$L$9,$K$4:$K$9) -> 207362.8302 | T5: =L5-R5 -> -22362.83018 | U5: =T5^2 -> 500096173.8 | V5: =(R5-$K$14)^2 -> 328956929
K6: 39900 | L6: 260000 | M6: 10750 | N6: 34500 | O6: 370875000 | P6: 115562500 | Q6: 1190250000 | R6: 316185.8491 | S6: 316185.8491 | T6: -56185.84909 | U6: =T6^2 -> 3156849638 | V6: =(R6-$K$14)^2 -> 8223923225
K7: 17000 | L7: 143000 | M7: -12150 | N7: -82500 | O7: 1002375000 | P7: 147622500 | Q7: 6806250000 | R7: 123003.9008 | S7: 123003.9008 | T7: 19996.0992 | U7: 399843983.4 | V7: 1.050545035e+10
K8: 34000 | L8: 270000 | M8: 4850 | N8: 44500 | O8: 215825000 | P8: 23522500 | Q8: 1980250000 | R8: 266414.0808 | S8: 266414.0808 | T8: 3585.919248 | U8: 12858816.85 | V8: 1673962004
K9: 43000 | L9: 398000 | M9: 13850 | N9: 172500 | O9: 2389125000 | P9: 191822500 | Q9: 29756250000 | R9: 342337.1172 | S9: 342337.1172 | T9: 55662.8828 | U9: 3098356522 | V9: 1.365091196e+10
O10: =SUM(O4:O9) -> 6012050000 | P10: =SUM(P4:P9) -> 712675000 | Q10: =SUM(Q4:Q9) -> 57885500000 | U10: =SUM(U4:U9) -> 7168489859 | V10: =SUM(V4:V9) -> 5.071701014e+10
J11: Count = n = | K11: =COUNT(K4:K9) -> 6 | L11: =IF(_xlfn.ISFORMULA(K11),_xlfn.FORMULATEXT(K11),"") -> =COUNT(K4:K9) | P11: (Xi - Xbar)^2 | Q11: SST = ∑(Yi-Ybar)^2 = How well observations cluster around Ybar Line. | U11: SSE = ∑(Yi-Yhat)^2 = How well observations cluster around Yhat Line.
J12: n - 1 = | K12: =K11-1 -> 5 | L12: =IF(_xlfn.ISFORMULA(K12),_xlfn.FORMULATEXT(K12),"") -> =K11-1 | Q12: Total Variation | V12: SSR = ∑(Yhat-Ybar)^2 = Sum of Squares of distances from Regression Line to Ybar Line (the distances that the Regression Line explains of the SST distance).
J13: Xbar | K13: =AVERAGE(K4:K9) -> 29150 | L13: =AVERAGE(K4:K9)
J14: Ybar | K14: =AVERAGE(L4:L9) -> 225500 | L14: =AVERAGE(L4:L9)
J15: Slope = m = b1 = | K15: =O10/P10 -> 8.435892939 | L15: =O10/P10 | N15: b1 = ∑((Xi-Xbar)*(Yi-Ybar))/∑((Xi-Xbar)^2)
J16: Slope = m = b1 = | K16: =SLOPE(L4:L9,K4:K9) -> 8.435892939 | L16: =SLOPE(L4:L9,K4:K9)
J17: Intercept = b = b0 = | K17: =K14-K13*K15 -> -20406.27916 | L17: =K14-K13*K15 | N17: b0 = Ybar-Xbar*b1 | U17: Section 12.5:
J18: Intercept = b = b0 = | K18: =INTERCEPT(L4:L9,K4:K9) -> -20406.27916 | L18: =INTERCEPT(L4:L9,K4:K9) | U18: F Test Notes:
J19: x | K19: 4 | L19: =IF(_xlfn.ISFORMULA(K19),_xlfn.FORMULATEXT(K19),"") ->  | U19: Method 1 to estimate Variantion for Error or y | V19: Method 2 to estimate Variantion for Error or y
J20: ="Yhat = f(x) = Predicted Value = "&SLOPE(L4:L9,K4:K9)&" * x + "&ROUND(INTERCEPT(L4:L9,K4:K9),1) -> Yhat = f(x) = Predicted Value = 8.43589293857649 * x + -20406.3 | K20: =K15*K19+K18 -> -20372.53559 | L20: =IF(_xlfn.ISFORMULA(K20),_xlfn.FORMULATEXT(K20),"") -> =K15*K19+K18
J22: SST = ∑(Yi-Ybar)^2 | K22: =Q10 -> 57885500000 | L22: =IF(_xlfn.ISFORMULA(K22),_xlfn.FORMULATEXT(K22),"") -> =Q10 | N22: SST = ∑(Yi-Ybar)^2 = How well observations cluster around Ybar Line.
J23: SST = ∑(Yi-Ybar)^2 | K23: =K24+K26 -> 5.78855e+10 | L23: =K24+K26
J24: SSE = ∑(Yi-Yhat)^2 | K24: =U10 -> 7168489859 | L24: =U10 | N24: SSE = ∑(Yi-Yhat)^2 = How well observations cluster around Yhat Line.
J25: SSE = ∑(Yi-Yhat)^2 | K25: =SUMPRODUCT((L4:L9-FORECAST(K4:K9,L4:L9,K4:K9))^2) -> 7168489859 | L25: =SUMPRODUCT((L4:L9-FORECAST(K4:K9,L4:L9,K4:K9))^2)
J26: SSR = ∑(Yhat-Ybar)^2 | K26: =V10 -> 5.071701014e+10 | L26: =V10 | N26: SSR = ∑(Yhat-Ybar)^2 = Sum of Squares of distances from Regression Line to Ybar Line (the distances that the Regression Line explains of the SST distance).
J27: SSR = ∑(Yhat-Ybar)^2 | K27: =SUMPRODUCT((FORECAST(K4:K9,L4:L9,K4:K9)-K14)^2) -> 5.071701014e+10 | L27: =SUMPRODUCT((FORECAST(K4:K9,L4:L9,K4:K9)-K14)^2)
J28: r^2 = Goodness of Fit = SSR/SST | K28: =K26/K22 -> 0.8761608717 | L28: =K26/K22 | N28: r^2 = SSR/SST = Goodness of Fit of Regression Equation/Line to Raw Data = Proportion of Total Variation (SST) that is Explained
J29: r^2 = Goodness of Fit = SSR/SST | K29: =RSQ(L4:L9,K4:K9) -> 0.8761608717 | L29: =RSQ(L4:L9,K4:K9) | N29: by using the Regression Equation/Line. This number will vary between 0 and 1. It measures strength of relationship and can be used for 1 or more independent variables.
J30: This is a very good fit: about 87.5% of the variation in y can be explained by the Regression Equation/Line.
J31: We can think of it this way: if we had not collected x and y data, we would be stuck with the Y = Ybar Line with the total Variation of (Y - Ybar).
J32: Our predictions would be much less accurate. Our Equation explains 87.5% of the variation above the Ybar Line.
J34: r^2 = Goodness of Fit = SSR/SST | K34: =SIGN(K15)*SQRT(K28) -> 0.9360346531 | L34: =IF(_xlfn.ISFORMULA(K34),_xlfn.FORMULATEXT(K34),"") -> =SIGN(K15)*SQRT(K28) | N34: r = Correlation Coefficient = Sign of Slope * SQRT(r^2) = Direction and Stregnth of Linear Relationship. Number between -1 and 1. Can be used for only one independent variable.
J35: r^2 = Goodness of Fit = SSR/SST | K35: =O10/K12/PRODUCT(_xlfn.STDEV.S(K4:K9),_xlfn.STDEV.S(L4:L9)) -> 0.9360346531 | L35: =O10/K12/PRODUCT(STDEV.S(K4:K9),STDEV.S(L4:L9)) | N35: r = ∑((Xi-Xbar)*(Yi-Ybar))/(n-1)/PRODUCT(sx*sy)
I37: a | J37: Assumed Regression Model with Population Parameters is: y = β0 + β1*X + є
J38: Least Squares Method used to estimate the b0 and b1 (Intercept and Slope)
J39: Estimated Regression Equation: Yhat = b1*X + b0
J40: Assumptions of Error term, є:
J41: 1) The error term is a random variable with Expected Value of Zero. E(є) = 0
J42: Implication: = β0 and β1x are constants, therefore: E( β0) = β0 and E( β1) = β1
J43: Thus for a given value of x, the expected value of y: E(y) = β1*X + β0 , which generate the values directly on the Regression Line.
J44: 2) The variance of є (s^2) about the Regression Line is the same for all X values.
J45: Implication: the variance of the y values about Regression Line equals s^2 and is the same for all X values.
J46: 3) Values of є are independent.
J47: Implication: the value of є for a particular x is not related to the value of є for any other particular x;
J48: thus, the value of y for a particular x is not related to the value of y for any other particular x.
J49: 4) є is a normally distributed random variable for all values of x.
J50: Implication: because y is a linear function of є , y is also a normally distributed random variable for all x values.
J52: Estimate of s^2 = s^2 = MSE = Variance of epsilon = є = Error in y values about Regression Equation/Line
J53: s^2 = MSE = SSE/(n-2) = ∑(Residuals^2)/(n-2) = ∑(Yi-Yhat)^2/(n-2) = ∑(Yi-b1*X + b0)^2/(n-2)
J54: Subtract 2 from n when dividing because 2 variables are estimated: β1 and β0
J55: MSE provides an unbiased estimator of s^2.
J56: s = SQRT(s^2) = Standard Error of the Estimate = Standard Deviation for each distributions.
J59: SSE = How well observations cluster around Yhat Line. | K59: =U10 -> 7168489859 | L59: =IF(_xlfn.ISFORMULA(K59),_xlfn.FORMULATEXT(K59),"") -> =U10 | M59: SSE = ∑(Yi-Yhat)^2 = How well observations cluster around Yhat Line.
J60: n = | K60: =K11 -> 6 | L60: =K11
J61: Number of variables estimated: β1 and β0 | K61: 2
J62: degrees of freedom | K62: =K60-K61 -> 4 | L62: =K60-K61 | M62: Sample size - # variables estimated
I63: a | J63: MSE = s^2 = estimate of variation = | K63: =K59/K62 -> 1792122465 | L63: =K59/K62 | M63: s^2 = Mean Square Error = MSE = SSE/(n-2) = ∑(Residuals^2)/(n-2) = ∑(Yi-Yhat)^2/(n-2) = ∑(Yi-b1*X + b0)^2/(n-2) =
M64: Variance of epsilon = є = Error in y values about Regression Equation/Line
I65: b | J65: s = SQRT(MSE) = Standard Error of the Estimate = | K65: =SQRT(K63) -> 42333.46743 | L65: =SQRT(K63) | M65: s = SQRT(s^2) = Standard Error of the Estimate = estimate of Standard Deviation for each distributions.
J66: Standard Error of the Estimate = | K66: =STEYX(L4:L9,K4:K9) -> 42333.46743 | L66: =STEYX(L4:L9,K4:K9) | M66: Standard Error of the predicted y-values for each x in the Regression Equation.
I67: c | J67: sb1 = Estimated Standard Deviation of Slope Estimated Standard Error of Slope | K67: =K66/SQRT(P10) -> 1.585762267 | L67: =K66/SQRT(P10) | M67: sb1 = s/SQRT(∑(xi-xbar)^2) = Estimated Standard Error of Slope = Amount of Standard Error of the Estimate for every 1 unit of SQRT(∑(xi-xbar)^2)
I68: d for t | J68: H0 : β1 = 0
J69: H0 : β1 <> 0
J70: Alpha = | K70: 0.05
J71: Slope = m = b1 = | K71: =SLOPE(L4:L9,K4:K9) -> 8.435892939 | L71: =SLOPE(L4:L9,K4:K9)
J72: sb1 = Estimated Standard Deviation of Slope Estimated Standard Error of Slope | K72: =K67 -> 1.585762267 | L72: =K67
J73: Test Statistic = t = b1/sb1 | K73: =K71/K72 -> 5.319771515 | L73: =K71/K72 | M73: Test Statistic = t = b1/sb1 = Slope/Estimated Standard Error of Slope
J74: t Critical Value = | K74: =_xlfn.T.INV(K70/2,K62) -> -2.776445105 | L74: =T.INV(K70/2,K62)
J75: t Critical Value = | K75: =-_xlfn.T.INV.2T(K70,K62) -> -2.776445105 | L75: =-T.INV.2T(K70,K62)
J76: p-value = | K76: =_xlfn.T.DIST(K73,K62,1)*2 -> 1.993993511 | L76: =T.DIST(K73,K62,1)*2
J77: p-value = | K77: =_xlfn.T.DIST.2T(ABS(K73),K62) -> 0.006006489205 | L77: =T.DIST.2T(ABS(K73),K62)
J79: Because our Test Statistic is opast our Critical Value and because our p-value is smaller than our alpha, we reject H0 and accept Ha.
J80: It is reasonable to assume that the slope is not zero.
J81: The significance test based on our sample evidence suugests that the slope is not zero.
J82: The sample evidence suggests that there is a significant relationship between x and y.
J83: The evidence is sufficient to conclude that a significant relationship exists between x and y.
J84: We do run the risk of a Type 1 Error (Innocent, but found guilty, H0 was TRUE, even though we rejected it.
J85: The sample evidence suggests that there is a significant relationship between x and y and therefore:
J86: we can be confident in using the Estimated Regression Equation to make predictions over the range of max and min x values.
I88: d for F | J88: H0 : β1 = 0
J89: H0 : β1 <> 0
J90: Alpha = | K90: 0.05
J91: SSR = ∑(Yhat-Ybar)^2 | K91: =V10 -> 5.071701014e+10 | L91: =IF(_xlfn.ISFORMULA(K91),_xlfn.FORMULATEXT(K91),"") -> =V10 | M91: SSR = ∑(Yhat-Ybar)^2 = Sum of Squares of distances from Regression Line to Ybar Line
J92: Regression Degrees of Freedom Number of Independent Variables = | K92: 1 | M92: For this text, Regression Degrees of Freedom is always equal to Number of Independent Variables.
J93: MSR = Estimate #1 for s^2 = SSR/1 = | K93: =K91/K92 -> 5.071701014e+10 | L93: =K91/K92 | M93: Independent Estimate #1 for s^2 = MSR = SSR/1
J94: SSE = ∑(Yi-Yhat)^2 | K94: =U10 -> 7168489859 | L94: =U10 | M94: SSE = ∑(Yi-Yhat)^2 = = ∑(Yi-b1*X + b0)^2/(n-2) = How well observations cluster around Yhat Line.
J95: n = | K95: =K11 -> 6 | L95: =K11 | M95: Sample Size
J96: Number of variables estimated: β1 and β0 | K96: 2 | M96: Subtract 2 from n when dividing because 2 variables are estimated: β1 and β0
J97: degrees of freedom | K97: =K95-K96 -> 4 | L97: =K95-K96 | M97: Sample size - # variables estimated
J98: MSE = s^2 = estimate of s^2 = | K98: =K94/K97 -> 1792122465 | L98: =IF(_xlfn.ISFORMULA(K98),_xlfn.FORMULATEXT(K98),"") -> =K94/K97 | M98: s^2 = Mean Square Error = MSE = SSE/(n-2) = Variance of epsilon = є = Error in y values about Regression Equation/Line
J99: F Test Statistic = MSR/MSE = (SSR/1)/(SST/(n-2)) | K99: =K93/K98 -> 28.29996897 | L99: =IF(_xlfn.ISFORMULA(K99),_xlfn.FORMULATEXT(K99),"") -> =K93/K98 | M99: F Test Statistic = MSR/MSE = 2 estimates of s^2 = Variance of y for each x value.
J100: F Critical Value = | K100: =_xlfn.F.INV.RT(K90,K92,K97) -> 7.708647422 | L100: =IF(_xlfn.ISFORMULA(K100),_xlfn.FORMULATEXT(K100),"") -> =F.INV.RT(K90,K92,K97)
J101: p-value | K101: =_xlfn.F.DIST.RT(K99,K92,K97) -> 0.006006489205 | L101: =IF(_xlfn.ISFORMULA(K101),_xlfn.FORMULATEXT(K101),"") -> =F.DIST.RT(K99,K92,K97)
J103: Because our Test Statistic is opast our Critical Value and because our p-value is smaller than our alpha, we reject H0 and accept Ha.
J104: It is reasonable to assume that the slope is not zero.
J105: The significance test based on our sample evidence suugests that the slope is not zero.
J106: The sample evidence suggests that there is a significant relationship between x and y.
J107: The evidence is sufficient to conclude that a significant relationship exists between x and y.
J108: We do run the risk of a Type 1 Error (Innocent, but found guilty, H0 was TRUE, even though we rejected it.
J109: The sample evidence suggests that there is a significant relationship between x and y and therefore:
J110: we can be confident in using the Estimated Regression Equation to make predictions over the range of max and min x values.
J113: LINEST function output:
J114: Slope | K114: =LINEST(L4:L9,K4:K9,1,1) -> 8.435892939 | L114: -20406.27916 | M114: Intercept
J115: Standard Error Slope | K115: 1.585762267 | L115: 49350.12601 | M115: Standard Error of Intercept
J116: Coefficient of Determination | K116: 0.8761608717 | L116: 42333.46743 | M116: Standard Error of y
J117: F Test Statistic | K117: 28.29996897 | L117: 4 | M117: df
J118: SS Regression | K118: 5.071701014e+10 | L118: 7168489859 | M118: SS Residual (Error)
J122: SUMMARY OUTPUT
J124: Regression Statistics
J125: Multiple R | K125: 0.9357754408
J126: R Square | K126: 0.8756756757
J127: Adjusted R Square | K127: 0.8342342342
J128: Standard Error | K128: 8.755950358
J129: Observations | K129: 5
J131: ANOVA
K132: df | L132: SS | M132: MS | N132: F | O132: Significance F
J133: Regression | K133: 1 | L133: 1620 | M133: 1620 | N133: 21.13043478 | O133: 0.01934892686
J134: Residual | K134: 3 | L134: 230 | M134: 76.66666667
J135: Total | K135: 4 | L135: 1850
K137: Coefficients | L137: Standard Error | M137: t Stat | N137: P-value | O137: Lower 95% | P137: Upper 95% | Q137: Lower 95.0% | R137: Upper 95.0%
J138: Intercept | K138: 68 | L138: 8.177430548 | M138: 8.315570472 | N138: 0.003644469617 | O138: 41.97576637 | P138: 94.02423363 | Q138: 41.97576637 | R138: 94.02423363
J139: Xi | K139: -3 | L139: 0.6526300069 | M139: -4.596785266 | N139: 0.01934892686 | O139: -5.076959954 | P139: -0.9230400458 | Q139: -5.076959954 | R139: -0.9230400458
J143: RESIDUAL OUTPUT
J145: Observation | K145: Predicted Yi | L145: Residuals
J146: 1 | K146: 59 | L146: -4
J147: 2 | K147: 32 | L147: 8
J148: 3 | K148: 50 | L148: 5
J149: 4 | K149: 8 | L149: 2
J150: 5 | K150: 26 | L150: -11
